fUST/lending_fUST_20260609
["ID","MTS","AMOUNT","RATE_DAILY","PERIOD"]
[424510045,1780984251000,-500.0,0.00018904,2]
[424510055,1780984251000,-500.0,0.00018904,2]
[424510053,1780984251000,-979.35,0.00018904,2]
[424510057,1780984251000,-500.0,0.00018904,2]
[424510061,1780984251000,-1326.26,0.00018904,2]
[424510059,1780984251000,-548.82,0.00018904,2]
[424510065,1780984251000,-500.0,0.00018904,2]
[424510073,1780984251000,-500.0,0.00018904,2]
[424510067,1780984251000,-16482.74,0.00018904,2]
[424510070,1780984251000,-902.18,0.00018904,2]
[424510068,1780984251000,-1079.64,0.00018904,2]
[424510074,1780984251000,-1274.55,0.00018904,2]
[424510076,1780984251000,-1285.5,0.00018904,2]
[424510093,1780984251000,-176.19935176,0.0001911,2]
[424510095,1780984251000,-164.58852525,0.0001911,2]
[424510078,1780984251000,-637.06631805,0.00019047,2]
[424510082,1780984251000,-830.60023736,0.00019062,2]
[424510126,1780984251000,-500.0,0.00019178,2]
[424510165,1780984251000,-1285.5,0.00019178,2]
[424510144,1780984251000,-300.0,0.00019178,2]
[424510192,1780984251000,-738.73,0.00019452,2]
[424510194,1780984251000,-678.85,0.00019452,2]
[424510193,1780984251000,-500.0,0.00019452,2]
[424510195,1780984251000,-874.38,0.00019452,2]
[424510190,1780984251000,-500.0,0.00019452,2]
[424510196,1780984251000,-1447.42,0.00019452,2]
[424510197,1780984251000,-383.45,0.00019452,2]
[424510198,1780984251000,-500.0,0.00019452,2]
[424510200,1780984251000,-500.0,0.00019452,2]
[424510205,1780984251000,-539.26,0.00019452,2]
[424510188,1780984251000,-171.95,0.00019452,2]
[424510130,1780984251000,-500.0,0.00019178,2]
[424510204,1780984251000,-500.0,0.00019452,2]
[424510202,1780984251000,-500.0,0.00019452,2]
[424510199,1780984251000,-509.61,0.00019452,2]
[424510206,1780984251000,-979.35,0.00019452,2]
[424510210,1780984251000,-548.82,0.00019452,2]
[424510207,1780984251000,-500.0,0.00019452,2]
[424510208,1780984251000,-500.0,0.00019452,2]
[424510212,1780984251000,-1326.26,0.00019452,2]
[424510214,1780984251000,-500.0,0.00019452,2]
[424510216,1780984251000,-500.0,0.00019452,2]
[424510201,1780984251000,-1776.48,0.00019452,2]
[424510182,1780984251000,-870.98347869,0.00019418,2]
[424510203,1780984251000,-651.04,0.00019452,2]
[424510185,1780984251000,-500.0,0.00019452,2]
[424510179,1780984251000,-895.44450602,0.00019418,2]
[424510140,1780984251000,-300.0,0.00019178,2]
[424510133,1780984251000,-500.0,0.00019178,2]
[424510135,1780984251000,-539.26,0.00019178,2]
[424510138,1780984251000,-500.0,0.00019178,2]
[424510149,1780984251000,-500.0,0.00019178,2]
[424510160,1780984251000,-1274.55,0.00019178,2]
[424510146,1780984251000,-548.82,0.00019178,2]
[424510154,1780984251000,-1079.64,0.00019178,2]
[424510153,1780984251000,-16482.74,0.00019178,2]
[424510148,1780984251000,-1326.26,0.00019178,2]
[424510151,1780984251000,-500.0,0.00019178,2]
[424510171,1780984251000,-796.33289757,0.00019402,2]
[424510156,1780984251000,-902.18,0.00019178,2]
[424510173,1780984251000,-160.0,0.00019408,5]
[424510176,1780984251000,-1038.2502967,0.00019418,2]
[424510169,1780984251000,-828.0,0.0001936,2]
[424510136,1780984251000,-979.35,0.00019178,2]
[424510162,1780984251000,-151.0,0.00019178,2]
[424510167,1780984251000,-825.0,0.0001936,2]
[424510163,1780984251000,-153.098378,0.00019178,2]
[424510158,1780984251000,-220.62,0.00019178,2]
[424510251,1780984252000,-3384.45,0.00019726,2]
[424510284,1780984252000,-500.0,0.00019726,2]
[424510260,1780984252000,-500.0,0.00019726,2]
[424510286,1780984252000,-509.61,0.00019726,2]
[424510264,1780984252000,-874.38,0.00019726,2]
[424510266,1780984252000,-345.83728209,0.00019726,2]
[424510289,1780984252000,-1776.48,0.00019726,2]
[424510282,1780984252000,-1101.58271791,0.00019726,2]
[424510258,1780984252000,-738.73,0.00019726,2]
[424510256,1780984252000,-409.37681846,0.00019726,2]
[424510262,1780984252000,-678.85,0.00019726,2]
[424510291,1780984252000,-635.90975018,0.00019726,2]
[424510223,1780984252000,-902.18,0.00019452,2]
[424510248,1780984252000,-3384.45,0.00019726,2]
[424510227,1780984252000,-1285.5,0.00019452,2]
[424510236,1780984252000,-192.06,0.00019726,2]
[424510239,1780984252000,-3537.99,0.00019726,2]
[424510229,1780984252000,-1838.0,0.00019462,2]
[424510231,1780984252000,-444.0,0.00019462,2]
[424510233,1780984252000,-184.007477,0.00019527,2]
[424510218,1780984252000,-16482.74,0.00019452,2]
[424510225,1780984252000,-1274.55,0.00019452,2]
[424510221,1780984252000,-1079.64,0.00019452,2]
[424510287,1780984252000,-500.0,0.00019726,2]
[424510253,1780984252000,-337.14,0.00019726,2]
[424510305,1780984252000,-548.82,0.00019726,2]
[424510345,1780984252000,-564.58961774,0.00019726,2]
[424510301,1780984252000,-500.0,0.00019726,2]
[424510307,1780984252000,-1326.26,0.00019726,2]
[424510363,1780984252000,-21907.17814859,0.0002,2]
[424510361,1780984252000,-1045.18017442,0.00019952,2]
[424510354,1780984252000,-308.0,0.00019899,2]
[424510360,1780984252000,-1074.53340722,0.00019952,2]
[424510353,1780984252000,-1764.25077357,0.00019891,2]
[424510358,1780984252000,-1245.90035604,0.00019952,2]
[424510356,1780984252000,-160.0,0.00019917,6]
[424510347,1780984252000,-1274.55,0.00019726,2]
[424510343,1780984252000,-337.59038226,0.00019726,2]
[424510349,1780984252000,-1285.5,0.00019726,2]
[424510340,1780984252000,-3105.81617797,0.00019726,2]
[424510351,1780984252000,-370.4050928,0.0001981,2]
[424510342,1780984252000,-1079.64,0.00019726,2]
[424510335,1780984252000,-500.0,0.00016438,2]
[424510337,1780984252000,-500.0,0.00016712,2]
[424510303,1780984252000,-364.63768935,0.00019726,2]
[424510299,1780984252000,-979.35,0.00019726,2]
[424510310,1780984252000,-500.0,0.00019726,2]
[424510312,1780984252000,-13376.92382203,0.00019726,2]
[424510293,1780984252000,-651.04,0.00019726,2]
[424510297,1780984252000,-539.26,0.00019726,2]
[424510295,1780984252000,-500.0,0.00019726,2]
[424510308,1780984252000,-500.0,0.00019726,2]
[424510338,1780984252000,-500.0,0.00016986,2]
[424511788,1780984891000,-152.0,0.00012214,7]
[424511789,1780984908000,-245.96183682,0.00014103,7]
[424511790,1780984924000,-154.68781384,0.00014103,7]
[424511791,1780984941000,-1019.05,0.00014104,2]
[424511792,1780984958000,-245.96183682,0.00014385,7]
[424511799,1780985173000,-238.90806329,0.00012458,7]
[424511804,1780985410000,1000.0,0.00023,120]
[424511821,1780985431000,-270.12457554,0.00014325,2]
[424511819,1780985431000,-7.05377353,0.00012458,7]
[424511820,1780985431000,-283.96803776,0.00014182,2]
[424511892,1780985440000,-882.12538682,0.00016238,2]
[424511879,1780985440000,-291.02181129,0.00014325,2]
[424511881,1780985440000,-245.96183682,0.00014808,7]
[424511890,1780985440000,-160.0,0.00016214,2]
[424511894,1780985440000,-85.59155722,0.00016337,2]
[424511885,1780985440000,-245.96183686,0.00015795,7]
[424511883,1780985440000,-245.96183682,0.00015231,7]
[424511887,1780985440000,-153.115,0.00016011,2]
[424512658,1780985446000,-275.43629508,0.00016337,2]
[424521280,1780986313000,-420.96050487,0.0001,7]
[424521281,1780986320000,163.0,0.00017,30]
[424521340,1780986632000,-500.0,0.00013933,2]
[424521341,1780986632000,-500.0,0.00013933,2]
[424521335,1780986632000,-300.0,0.00013932,2]
[424521330,1780986632000,-351.77869371,0.0001352,2]
[424521333,1780986632000,-1869.52942431,0.0001352,2]
[424521332,1780986632000,-2270.87446784,0.0001352,2]
[424521328,1780986632000,-575.92824447,0.00013385,2]
[424521339,1780986632000,-528.22412468,0.00013933,2]
[424521327,1780986632000,-1693.52350633,0.00013385,2]
[424521325,1780986632000,-283.27175057,0.0001,7]
[424521326,1780986632000,-320.81182996,0.000118,5]
[424521334,1780986632000,-357.26982633,0.00013657,2]
[424521331,1780986632000,-507.81741414,0.0001352,2]
[424521329,1780986632000,-2730.5482492,0.00013385,2]
[424521338,1780986632000,-186.78696079,0.00013933,2]
[424521336,1780986632000,-300.0,0.00013932,2]
[424521357,1780986632000,-500.0,0.00014358,2]
[424521354,1780986632000,-500.0,0.00014358,2]
[424521356,1780986632000,-5.62554822,0.00014358,2]
[424521337,1780986632000,-500.0,0.00013933,2]
[424521358,1780986632000,-40.21158117,0.00014358,2]
[424521352,1780986632000,-398.65636337,0.00014358,2]
[424521355,1780986632000,-494.37445178,0.00014358,2]
[424521351,1780986632000,-600.0,0.00013933,2]
[424521350,1780986632000,-500.0,0.00013933,2]
[424521348,1780986632000,-500.0,0.00013933,2]
[424521342,1780986632000,-500.0,0.00013933,2]
[424521343,1780986632000,-500.0,0.00013933,2]
[424521345,1780986632000,-500.0,0.00013933,2]
[424521353,1780986632000,-500.0,0.00014358,2]
[424521413,1780986638000,-472.40428456,0.00014358,2]
[424521411,1780986638000,-500.0,0.00014358,2]
[424521420,1780986638000,-500.0,0.00014358,2]
[424521409,1780986638000,-459.78841883,0.00014358,2]
[424521407,1780986638000,-5000.0,0.00014214,2]
[424521416,1780986638000,-500.0,0.00014358,2]
[424521418,1780986638000,-500.0,0.00014358,2]
[424521436,1780986638000,-5174.7679654,0.00014425,2]
[424521424,1780986638000,-500.0,0.00014358,2]
[424521437,1780986638000,-3905.53053139,0.00014894,2]
[424521434,1780986638000,-17819.31997506,0.00014359,2]
[424521426,1780986638000,-500.0,0.00014358,2]
[424521432,1780986638000,-550.0,0.00014358,2]
[424521422,1780986638000,-500.0,0.00014358,2]
[424521428,1780986638000,-500.0,0.00014358,2]
[424521430,1780986638000,-500.0,0.00014358,2]
[424521630,1780986646000,-4142.30180381,0.00014894,2]
[424521633,1780986646000,-1000.0,0.00015255,2]
[424521631,1780986646000,-155.54626134,0.00014951,7]
[424521632,1780986646000,-155.54626134,0.0001525,7]
[424521636,1780986646000,-155.54626134,0.00015699,7]
[424521634,1780986646000,-162.19502572,0.00015401,7]
[424521635,1780986646000,-151.18496864,0.00015486,7]
[424521638,1780986646000,-1120.59590779,0.00016237,2]
[424521641,1780986646000,-44.70314391,0.00016326,2]
[424521637,1780986646000,-155.54626134,0.00016147,7]
[424521643,1780986646000,-206.70314391,0.00016335,2]
[424521642,1780986646000,-293.29685609,0.00016335,2]
[424521645,1780986646000,-209.46953307,0.00016336,2]
[424521648,1780986646000,-508.94974336,0.00016336,2]
[424521647,1780986646000,-500.0,0.00016336,2]
[424521639,1780986646000,-160.0,0.00016317,2]
[424521649,1780986646000,-515.67632869,0.00016337,2]
[424521646,1780986646000,-500.0,0.00016336,2]
[424521650,1780986646000,-421.65125097,0.00016337,2]
[424521640,1780986646000,-131.52385609,0.00016326,2]
[424521644,1780986646000,-500.0,0.00016336,2]
[424521653,1780986924000,-5000.0,0.00014214,2]
[424521652,1780986924000,-343.76026201,0.00014214,2]
[424521651,1780986924000,-5000.0,0.00014072,2]
[424521654,1780986927000,1386.23973799,0.00014214,2]
[424521675,1780987752000,-168.809073,0.00012985,2]
[424521712,1780987832000,-621.82,0.00012985,2]
[424521715,1780987832000,-1228.19097908,0.00012985,2]
[424521717,1780987832000,-304.45979512,0.00012985,2]
[424521719,1780987832000,-2676.7201528,0.00012985,2]
[424521723,1780987832000,-377.79288211,0.00013116,2]
[424521727,1780987832000,-422.55710287,0.00013116,2]
[424521729,1780987832000,-45.07952668,0.00013445,2]
[424521721,1780987832000,-981.6298472,0.00013116,2]
[424521812,1780987838000,-124.4726976,0.00013446,2]
[424521814,1780987838000,-1610.4917356,0.00013446,2]
[424521803,1780987838000,-372.90450698,0.00013446,2]
[424521801,1780987838000,-354.92047332,0.00013445,2]
[424522082,1780987840000,-1572.07531512,0.00013446,2]
[424522086,1780987840000,-306.68917783,0.00014358,2]
[424522084,1780987840000,-193.31082217,0.00014358,2]
[424522095,1780987840000,-500.0,0.0001439,2]
[424522091,1780987840000,-128.26987635,0.0001439,2]
[424522096,1780987840000,-190.77100221,0.0001439,2]
[424522093,1780987840000,-219.67964361,0.0001439,2]
[424522088,1780987840000,-504.88581824,0.0001439,2]
[424522116,1780987841000,-309.22899779,0.0001439,2]
[424522118,1780987841000,-500.0,0.0001439,2]
[424522120,1780987841000,-565.68299919,0.0001439,2]
[424522123,1780987841000,-500.0,0.0001439,2]
[424522125,1780987841000,-500.0,0.0001439,2]
[424522127,1780987841000,-172.01691057,0.0001439,2]
[424522122,1780987841000,-500.0,0.0001439,2]
[424522400,1780987843000,-327.98308943,0.0001439,2]
[424522411,1780987843000,-300.0,0.0001439,2]
[424522413,1780987843000,-1323.06879567,0.00014391,2]
[424522415,1780987843000,-41.69111923,0.00014391,2]
[424522403,1780987843000,-469.23022057,0.0001439,2]
[424522402,1780987843000,-500.0,0.0001439,2]
[424522417,1780987843000,-1424.73704841,0.00014391,2]
[424522406,1780987843000,-30.76977943,0.0001439,2]
[424522418,1780987843000,-3634.422095,0.00014391,2]
[424522422,1780987843000,-7908.9103185,0.00014391,2]
[424522407,1780987843000,-500.0,0.0001439,2]
[424522424,1780987843000,-3274.69130816,0.0001443,2]
[424522409,1780987843000,-500.0,0.0001439,2]
[424522426,1780987843000,-2325.84961237,0.0001453,2]
[424522444,1780987843000,-193.99050146,0.00016037,2]
[424522451,1780987843000,-414.25839924,0.00016037,2]
[424522440,1780987843000,-180.717151,0.00015602,2]
[424522435,1780987843000,-173.13221952,0.00015444,2]
[424522436,1780987843000,-221.98910982,0.00015563,2]
[424522442,1780987843000,-309.18513893,0.00015614,7]
[424522431,1780987843000,-175.661697,0.00015156,2]
[424522438,1780987843000,-121.77115219,0.00015563,2]
[424522428,1780987843000,-343.76026201,0.00014888,2]
[424522421,1780987843000,-3390.03775109,0.00014391,2]
[424522433,1780987843000,-500.0,0.00015254,2]
[424522429,1780987843000,-152.0,0.00015092,7]
[424522488,1780987846000,-958.5,0.00016037,2]
[424522484,1780987846000,-134202.55955892,0.00016037,2]
[424522486,1780987846000,-11089.44682261,0.00016037,2]
[424522487,1780987846000,-528.01737883,0.00016037,2]
[424522485,1780987846000,-9758.58130913,0.00016037,2]
[424522483,1780987846000,-3274.6913081,0.00015991,2]
[424522482,1780987846000,-379.57039506,0.00016037,2]
[424522480,1780987846000,-3807.43454434,0.00016037,2]
[424536695,1780989011000,200000.0,0.00023695,30]
[424536912,1780989028000,500000.0,0.00023695,30]
[424536959,1780989032000,-613.33,0.00012041,2]
[424537052,1780989039000,500000.0,0.00023695,30]
[424537095,1780989040000,-767.677452,0.0001575,2]
[424537093,1780989040000,-3766.7157982,0.0001575,2]
[424537098,1780989040000,-500.0,0.00015836,2]
[424537089,1780989040000,-455.97809944,0.00015736,2]
[424537094,1780989040000,-664.16736173,0.0001575,2]
[424537092,1780989040000,-36813.97892717,0.00015737,2]
[424537102,1780989040000,-500.0,0.00015836,2]
[424537101,1780989040000,-500.0,0.00015836,2]
[424537112,1780989040000,-500.0,0.0001589,2]
[424537105,1780989040000,-500.0,0.00015836,2]
[424537113,1780989040000,-500.0,0.0001589,2]
[424537110,1780989040000,-500.0,0.0001589,2]
[424537104,1780989040000,-500.0,0.00015836,2]
[424537111,1780989040000,-500.0,0.0001589,2]
[424537114,1780989040000,-500.0,0.0001589,2]
[424537109,1780989040000,-244.559637,0.00015862,2]
[424537115,1780989040000,-500.0,0.0001589,2]
[424537108,1780989040000,-184.65024564,0.00015837,2]
[424537106,1780989040000,-297.11186177,0.00015836,2]
[424537091,1780989040000,-857769.20324087,0.00015737,2]
[424537082,1780989040000,-500.0,0.00015736,2]
[424537100,1780989040000,-500.0,0.00015836,2]
[424537069,1780989040000,-4386.67,0.00012041,2]
[424537070,1780989040000,-5000.0,0.00012163,2]
[424537072,1780989040000,-152.0,0.00015061,7]
[424537071,1780989040000,-1000.0,0.00014427,2]
[424537076,1780989040000,-158.213,0.00015422,2]
[424537074,1780989040000,-152.0,0.00015061,7]
[424537087,1780989040000,-500.0,0.00015736,2]
[424537081,1780989040000,-291.7877099,0.00015736,2]
[424537117,1780989040000,-500.0,0.0001589,2]
[424537079,1780989040000,-266.46264728,0.00015704,7]
[424537077,1780989040000,-1095.83624796,0.00015637,2]
[424537078,1780989040000,-2456.01848111,0.00015637,2]
[424537083,1780989040000,-500.0,0.00015736,2]
[424537084,1780989040000,-500.0,0.00015736,2]
[424537080,1780989040000,-208.70701346,0.00015704,7]
[424537085,1780989040000,-500.0,0.00015736,2]
[424537088,1780989040000,-500.0,0.00015736,2]
[424537090,1780989040000,-7608.59383511,0.00015737,2]
[424537097,1780989040000,-2305.9313998,0.0001575,2]
[424537099,1780989040000,-444.03730572,0.00015836,2]
[424537128,1780989040000,-500.0,0.0001589,2]
[424537103,1780989040000,-500.0,0.00015836,2]
[424537129,1780989040000,-500.0,0.0001589,2]
[424537146,1780989040000,-151.5,0.00016163,2]
[424537147,1780989040000,-223.13219977,0.00016163,2]
[424537148,1780989040000,-218.55433584,0.00016163,2]
[424537150,1780989040000,-151.5,0.00016163,2]
[424537152,1780989040000,-151.5,0.00016163,2]
[424537163,1780989040000,-500.0,0.00016438,2]
[424537157,1780989040000,-208.99198269,0.00016163,2]
[424537161,1780989040000,-500.0,0.00016164,2]
[424537160,1780989040000,-156.43284447,0.00016163,2]
[424537145,1780989040000,-151.5,0.00016163,2]
[424537154,1780989040000,-151.5,0.00016163,2]
[424537151,1780989040000,-151.5,0.00016163,2]
[424537164,1780989040000,-199.29841962,0.00016438,2]
[424537156,1780989040000,-201.09034158,0.00016163,2]
[424537153,1780989040000,-201.99231811,0.00016163,2]
[424537155,1780989040000,-151.5,0.00016163,2]
[424537166,1780989040000,-500.0,0.00016438,2]
[424537165,1780989040000,-500.0,0.00016438,2]
[424537167,1780989040000,-500.0,0.00016438,2]
[424537127,1780989040000,-500.0,0.0001589,2]
[424537159,1780989040000,-159.8047406,0.00016163,2]
[424537141,1780989040000,-347.33769136,0.00016067,2]
[424537162,1780989040000,-343.76026201,0.00016237,2]
[424537142,1780989040000,-396.5604042,0.00016067,2]
[424537118,1780989040000,-500.0,0.0001589,2]
[424537144,1780989040000,-284.98003803,0.00016163,2]
[424537119,1780989040000,-500.0,0.0001589,2]
[424537116,1780989040000,-500.0,0.0001589,2]
[424537121,1780989040000,-500.0,0.0001589,2]
[424537125,1780989040000,-500.0,0.0001589,2]
[424537124,1780989040000,-500.0,0.0001589,2]
[424537122,1780989040000,-500.0,0.0001589,2]
[424537123,1780989040000,-500.0,0.0001589,2]
[424537131,1780989040000,-500.0,0.0001589,2]
[424537126,1780989040000,-500.0,0.0001589,2]
[424537135,1780989040000,-500.0,0.0001589,2]
[424537130,1780989040000,-561.3296539,0.0001589,2]
[424537136,1780989040000,-217.90102253,0.00016037,2]
[424537134,1780989040000,-500.0,0.0001589,2]
[424537139,1780989040000,-372.63258571,0.00016067,2]
[424537138,1780989040000,-392.22184056,0.00016037,2]
[424537133,1780989040000,-500.0,0.0001589,2]
[424537137,1780989040000,-170.14319221,0.00016037,2]
[424537140,1780989040000,-425.43994643,0.00016067,2]
[424537199,1780989041000,-500.0,0.00016438,2]
[424537219,1780989041000,-500.0,0.00016438,2]
[424537207,1780989041000,-500.0,0.00016438,2]
[424537194,1780989041000,-500.24949315,0.00016438,2]
[424537204,1780989041000,-500.0,0.00016438,2]
[424537203,1780989041000,-500.0,0.00016438,2]
[424537200,1780989041000,-500.0,0.00016438,2]
[424537206,1780989041000,-500.0,0.00016438,2]
[424537209,1780989041000,-500.0,0.00016438,2]
[424537205,1780989041000,-500.0,0.00016438,2]
[424537208,1780989041000,-500.0,0.00016438,2]
[424537213,1780989041000,-500.0,0.00016438,2]
[424537210,1780989041000,-500.0,0.00016438,2]
[424537211,1780989041000,-500.0,0.00016438,2]
[424537220,1780989041000,-500.0,0.00016438,2]
[424537212,1780989041000,-724.11,0.00016438,2]
[424537216,1780989041000,-500.0,0.00016438,2]
[424537217,1780989041000,-500.0,0.00016438,2]
[424537218,1780989041000,-500.0,0.00016438,2]
[424537215,1780989041000,-500.0,0.00016438,2]
[424537223,1780989041000,-500.0,0.00016438,2]
[424537201,1780989041000,-500.0,0.00016438,2]
[424537233,1780989041000,-633.77,0.00016438,2]
[424537221,1780989041000,-500.0,0.00016438,2]
[424537198,1780989041000,-500.0,0.00016438,2]
[424537175,1780989041000,-443.38653839,0.00016438,2]
[424537195,1780989041000,-500.0,0.00016438,2]
[424537227,1780989041000,-500.0,0.00016438,2]
[424537178,1780989041000,-500.0,0.00016438,2]
[424537177,1780989041000,-500.0,0.00016438,2]
[424537176,1780989041000,-500.0,0.00016438,2]
[424537173,1780989041000,-500.0,0.00016438,2]
[424537168,1780989041000,-500.0,0.00016438,2]
[424537170,1780989041000,-500.0,0.00016438,2]
[424537171,1780989041000,-500.0,0.00016438,2]
[424537174,1780989041000,-626.55331307,0.00016438,2]
[424537172,1780989041000,-500.0,0.00016438,2]
[424537190,1780989041000,-500.0,0.00016438,2]
[424537197,1780989041000,-285.81286498,0.00016438,2]
[424537192,1780989041000,-500.0,0.00016438,2]
[424537186,1780989041000,-500.0,0.00016438,2]
[424537185,1780989041000,-293.65848513,0.00016438,2]
[424537181,1780989041000,-500.0,0.00016438,2]
[424537182,1780989041000,-500.0,0.00016438,2]
[424537183,1780989041000,-500.0,0.00016438,2]
[424537184,1780989041000,-500.0,0.00016438,2]
[424537188,1780989041000,-500.0,0.00016438,2]
[424537189,1780989041000,-543.44,0.00016438,2]
[424537187,1780989041000,-500.0,0.00016438,2]
[424537193,1780989041000,-500.0,0.00016438,2]
[424537196,1780989041000,-500.0,0.00016438,2]
[424537179,1780989041000,-500.0,0.00016438,2]
[424537225,1780989041000,-500.0,0.00016438,2]
[424537251,1780989041000,-500.0,0.00016438,2]
[424537237,1780989041000,-500.0,0.00016438,2]
[424537262,1780989041000,-499.81619136,0.00016438,2]
[424537261,1780989041000,-500.0,0.00016438,2]
[424537267,1780989041000,-500.0,0.00016438,2]
[424537266,1780989041000,-500.0,0.00016438,2]
[424537268,1780989041000,-550.39,0.00016438,2]
[424537265,1780989041000,-0.18380864,0.00016438,2]
[424537272,1780989041000,-500.0,0.00016438,2]
[424537271,1780989041000,-542.88,0.00016438,2]
[424537269,1780989041000,-500.0,0.00016438,2]
[424537279,1780989041000,-2666.66,0.00016438,2]
[424537277,1780989041000,-500.0,0.00016438,2]
[424537255,1780989041000,-206.25561656,0.00016438,2]
[424537276,1780989041000,-500.0,0.00016438,2]
[424537285,1780989041000,-500.0,0.00016438,2]
[424537274,1780989041000,-500.0,0.00016438,2]
[424537275,1780989041000,-500.0,0.00016438,2]
[424537273,1780989041000,-500.0,0.00016438,2]
[424537278,1780989041000,-500.0,0.00016438,2]
[424537280,1780989041000,-500.0,0.00016438,2]
[424537283,1780989041000,-500.0,0.00016438,2]
[424537286,1780989041000,-434.44,0.00016438,2]
[424537288,1780989041000,-500.0,0.00016438,2]
[424537222,1780989041000,-500.0,0.00016438,2]
[424537287,1780989041000,-500.0,0.00016438,2]
[424537284,1780989041000,-607.87,0.00016438,2]
[424537256,1780989041000,-500.0,0.00016438,2]
[424537282,1780989041000,-500.0,0.00016438,2]
[424537252,1780989041000,-622.56,0.00016438,2]
[424537228,1780989041000,-500.0,0.00016438,2]
[424537234,1780989041000,-500.0,0.00016438,2]
[424537230,1780989041000,-500.0,0.00016438,2]
[424537231,1780989041000,-500.0,0.00016438,2]
[424537232,1780989041000,-500.0,0.00016438,2]
[424537235,1780989041000,-500.0,0.00016438,2]
[424537226,1780989041000,-500.0,0.00016438,2]
[424537229,1780989041000,-500.0,0.00016438,2]
[424537238,1780989041000,-541.30801064,0.00016438,2]
[424537241,1780989041000,-500.0,0.00016438,2]
[424537240,1780989041000,-500.0,0.00016438,2]
[424537242,1780989041000,-500.0,0.00016438,2]
[424537239,1780989041000,-500.0,0.00016438,2]
[424537249,1780989041000,-500.0,0.00016438,2]
[424537246,1780989041000,-500.0,0.00016438,2]
[424537245,1780989041000,-590.0,0.00016438,2]
[424537247,1780989041000,-500.0,0.00016438,2]
[424537248,1780989041000,-500.0,0.00016438,2]
[424537258,1780989041000,-500.0,0.00016438,2]
[424537257,1780989041000,-500.0,0.00016438,2]
[424537259,1780989041000,-685.64,0.00016438,2]
[424537260,1780989041000,-500.0,0.00016438,2]
[424537250,1780989041000,-500.0,0.00016438,2]
[424537244,1780989041000,-612.48,0.00016438,2]
[424537254,1780989041000,-420.96050487,0.00016438,2]
[424537332,1780989042000,-500.0,0.00016438,2]
[424537319,1780989042000,-500.0,0.00016438,2]
[424537343,1780989042000,-500.0,0.00016438,2]
[424537333,1780989042000,-500.0,0.00016438,2]
[424537330,1780989042000,-1144.34,0.00016438,2]
[424537321,1780989042000,-500.0,0.00016438,2]
[424537318,1780989042000,-500.0,0.00016438,2]
[424537322,1780989042000,-500.0,0.00016438,2]
[424537323,1780989042000,-500.0,0.00016438,2]
[424537336,1780989042000,-500.0,0.00016438,2]
[424537320,1780989042000,-500.0,0.00016438,2]
[424537337,1780989042000,-500.0,0.00016438,2]
[424537355,1780989042000,-500.0,0.00016438,2]
[424537339,1780989042000,-500.0,0.00016438,2]
[424537334,1780989042000,-613.06390457,0.00016438,2]
[424537340,1780989042000,-500.0,0.00016438,2]
[424537335,1780989042000,-500.0,0.00016438,2]
[424537341,1780989042000,-533.64869509,0.00016438,2]
[424537331,1780989042000,-500.0,0.00016438,2]
[424537345,1780989042000,-500.0,0.00016438,2]
[424537344,1780989042000,-500.0,0.00016438,2]
[424537356,1780989042000,-1170.14,0.00016438,2]
[424537347,1780989042000,-500.81960417,0.00016438,2]
[424537346,1780989042000,-500.0,0.00016438,2]